bitfinex/quotes_BTCUSD_20251214
["timestamp","ask_amount","ask_price","bid_price","bid_amount"]
[1765675078383,0.0013854,90453.0,90452.0,0.05254]
[1765675079836,0.0003854,90453.0,90452.0,0.05254]
[1765675080394,0.0013854,90453.0,90452.0,0.05254]
[1765675081020,0.0003854,90453.0,90452.0,0.05354]
[1765675086421,0.0003854,90453.0,90452.0,0.05454]
[1765675091666,0.0003854,90453.0,90452.0,0.0555723]
[1765675094786,0.0003854,90453.0,90452.0,0.05454]
[1765675098973,0.0003854,90453.0,90452.0,0.16534]
[1765675099784,0.0003854,90453.0,90452.0,0.05454]
[1765675105420,0.0003854,90453.0,90452.0,0.16534]
[1765675106280,0.0003854,90453.0,90452.0,0.24485029]
[1765675106552,0.0003854,90453.0,90452.0,0.24385029]
[1765675106919,0.0003854,90453.0,90452.0,0.24285029]
[1765675107317,0.0003854,90453.0,90452.0,0.16434]
[1765675116406,0.0003854,90453.0,90452.0,0.05354]
[1765675120351,0.0003854,90453.0,90452.0,0.16434]
[1765675121036,0.0003854,90453.0,90452.0,0.05354]
[1765675126371,0.0003854,90453.0,90452.0,0.16434]
[1765675139592,0.0003854,90453.0,90452.0,0.05354]
[1765675145113,0.0003854,90453.0,90452.0,0.06459497]
[1765675148278,0.01105473,90459.0,90454.0,0.01105534]
[1765675148477,0.01105473,90459.0,90454.0,0.23216036]
[1765675148680,0.01105473,90459.0,90455.0,0.03594]
[1765675148930,0.01105473,90459.0,90456.0,0.01105509]
[1765675149231,0.01105485,90458.0,90457.0,0.01744]
[1765675152560,0.01105473,90459.0,90457.0,0.01744]
[1765675152920,0.23215124,90459.0,90457.0,0.01744]
[1765675153994,0.01105448,90461.0,90457.0,0.01744]
[1765675154144,0.001,90459.0,90457.0,0.02849497]
[1765675154340,0.001,90459.0,90457.0,0.01744]
[1765675154887,0.23238209,90460.0,90457.0,0.01744]
[1765675155253,0.23338209,90460.0,90457.0,0.01744]
[1765675155454,0.22109708,90458.0,90457.0,0.01744]
[1765675174503,0.22109665,90459.0,90457.0,0.01744]
[1765675175855,0.22209665,90459.0,90457.0,0.01744]
[1765675176715,0.22209641,90459.0,90457.0,0.01744]
[1765675181582,0.22209641,90459.0,90457.0,0.02982]
[1765675184116,0.001,90459.0,90457.0,0.02982]
[1765675184676,0.22209706,90459.0,90457.0,0.02982]
[1765675186916,0.22209706,90459.0,90457.0,0.01744]
[1765675187119,0.001,90459.0,90457.0,0.01744]
[1765675187734,0.001,90459.0,90457.0,0.02982]
[1765675187939,0.001,90459.0,90457.0,0.05353]
[1765675188399,0.001,90459.0,90458.0,0.34098224]
[1765675188534,0.001,90459.0,90458.0,0.42114547]
[1765675188736,0.001,90459.0,90458.0,1.42114547]
[1765675189347,0.0004,90470.0,90469.0,1.38188859]
[1765675189551,0.0004,90470.0,90469.0,1.42425859]
[1765675189782,0.00069749,90470.0,90469.0,1.44796859]
[1765675190201,0.00069749,90470.0,90469.0,0.31187]
[1765675190407,0.00069749,90470.0,90469.0,0.36877235]
[1765675190575,0.00069749,90470.0,90469.0,1.21007235]
[1765675191212,0.00069749,90470.0,90469.0,1.21107235]
[1765675191825,0.00069749,90470.0,90469.0,1.21207235]
[1765675192030,0.00069749,90470.0,90469.0,1.26209074]
[1765675192606,0.00069749,90470.0,90469.0,0.26209074]
[1765675192805,0.00069749,90470.0,90469.0,1.26209074]
[1765675193334,0.00069749,90470.0,90469.0,1.3414938]
[1765675193538,0.00069749,90470.0,90469.0,1.26209074]
[1765675199412,0.00069749,90470.0,90469.0,1.34136373]
[1765675200911,0.00069749,90470.0,90469.0,1.56243393]
[1765675204380,0.00069749,90470.0,90469.0,1.48316094]
[1765675206265,0.00069749,90470.0,90469.0,1.37236094]
[1765675206474,0.00069749,90470.0,90469.0,1.48316094]
[1765675207282,0.00069749,90470.0,90469.0,1.56243393]
[1765675209993,0.00069749,90470.0,90469.0,0.56243393]
[1765675210170,0.00069749,90470.0,90469.0,1.56243393]
[1765675210413,0.00069749,90470.0,90469.0,1.56143393]
[1765675211444,0.00069749,90470.0,90469.0,1.48216094]
[1765675211652,0.00069749,90470.0,90469.0,1.48116094]
[1765675212659,0.00069749,90470.0,90469.0,1.48216094]
[1765675212846,0.00069749,90470.0,90469.0,1.48316094]
[1765675213043,0.00069749,90470.0,90469.0,0.48316094]
[1765675213382,0.00069749,90470.0,90469.0,1.48116094]
[1765675213786,0.00069749,90470.0,90469.0,1.48516094]
[1765675218455,0.00069749,90470.0,90469.0,1.58439138]
[1765675219398,0.00069749,90470.0,90469.0,1.48516094]
[1765675220356,0.01105106,90489.0,90485.0,0.12185155]
[1765675220571,0.01116663,90489.0,90486.0,0.01744]
[1765675220763,0.01116663,90489.0,90486.0,0.0503]
[1765675221443,0.01116663,90489.0,90487.0,0.01198]
[1765675221649,0.01116663,90489.0,90487.0,0.03501937]
[1765675221867,0.01216663,90489.0,90487.0,0.03501937]
[1765675223154,0.01316663,90489.0,90487.0,0.03501937]
[1765675224357,0.01316663,90489.0,90488.0,0.02326]
[1765675225091,0.01216663,90489.0,90488.0,0.02326]
[1765675225288,0.01116663,90489.0,90488.0,0.02326]
[1765675225497,0.01316663,90489.0,90488.0,0.02326]
[1765675227190,0.22102378,90488.0,90487.0,0.01120937]
[1765675227779,0.22155913,90488.0,90487.0,0.01120937]
[1765675227974,0.22155913,90488.0,90487.0,0.03421937]
[1765675228586,0.22255913,90488.0,90487.0,0.03421937]
[1765675228792,0.22355913,90488.0,90487.0,0.03421937]
[1765675229516,0.22355913,90488.0,90487.0,0.01120937]
[1765675230734,0.22355913,90488.0,90487.0,0.04993937]
[1765675231642,0.00253535,90488.0,90487.0,0.04993937]
[1765675235870,0.00253535,90488.0,90487.0,0.02692937]
[1765675239211,0.22102622,90487.0,90486.0,0.02649]
[1765675240579,0.23784909,90487.0,90486.0,0.01744]
[1765675240772,0.22103633,90483.0,90481.0,0.07956224]
[1765675240968,0.22104088,90481.0,90480.0,0.07956224]
[1765675241229,0.22104088,90481.0,90480.0,0.01744]
[1765675241386,0.22877027,90482.0,90480.0,0.01744]
[1765675241827,0.23038314,90482.0,90480.0,0.01744]
[1765675247400,0.00161287,90482.0,90480.0,0.01744]
[1765675247619,0.00161287,90482.0,90481.0,0.16188]
[1765675248494,0.01105143,90486.0,90483.0,0.01105179]
[1765675248686,0.01105143,90486.0,90485.0,0.1108]
[1765675249167,0.23208266,90485.0,90482.0,0.13381]
[1765675251227,0.23308266,90485.0,90482.0,0.13381]
[1765675253342,0.23308266,90485.0,90483.0,0.02301]
[1765675253547,0.23308357,90485.0,90482.0,0.1108]
[1765675253704,0.00041641,90484.0,90482.0,0.1108]
[1765675253905,0.23308357,90485.0,90482.0,0.1108]
[1765675254558,0.23208357,90485.0,90482.0,0.1108]
[1765675254944,0.22103582,90484.0,90482.0,0.13381]
[1765675255528,0.22103582,90484.0,90482.0,0.1108]
[1765675255939,0.23208749,90484.0,90482.0,0.1108]
[1765675259089,0.23209292,90481.0,90478.0,0.07956224]
[1765675259261,0.23209292,90481.0,90471.0,0.07956224]
[1765675259262,0.01105289,90474.0,90471.0,0.07956224]
[1765675259464,0.01105289,90474.0,90473.0,0.1108]
[1765675259666,0.22106042,90473.0,90472.0,0.01744]
[1765675259878,0.23212113,90470.0,90467.0,0.07956224]
[1765675260097,0.22107508,90467.0,90466.0,1.0]
[1765675260301,0.22107508,90467.0,90466.0,1.01744]
[1765675260475,0.22107508,90467.0,90466.0,1.05556]
[1765675260785,0.01105314,90472.0,90466.0,1.05556]
[1765675260786,0.01105277,90475.0,90467.0,0.01105375]
[1765675260984,0.22105855,90474.0,90472.0,0.01281]
[1765675261208,0.22105855,90474.0,90472.0,0.01181]
[1765675262172,0.01105277,90475.0,90472.0,0.01181]
[1765675262945,0.01105277,90475.0,90472.0,0.03486]
[1765675263506,0.01105277,90475.0,90472.0,0.04993]
[1765675263908,0.22105798,90474.0,90472.0,0.02688]
[1765675264112,0.01105277,90475.0,90472.0,0.02688]
[1765675264514,0.01105277,90475.0,90472.0,0.04993]
[1765675264919,0.01205277,90475.0,90472.0,0.04993]
[1765675268756,0.01205277,90475.0,90472.0,0.02688]
[1765675269572,0.01205277,90475.0,90474.0,0.01507]
[1765675269781,0.01205277,90475.0,90473.0,0.01181]
[1765675270197,0.01105277,90475.0,90473.0,0.01181]
[1765675271104,0.23211058,90475.0,90473.0,0.01181]
[1765675271651,0.22106834,90470.0,90468.0,0.01181]
[1765675275597,0.22106834,90470.0,90468.0,0.03486]
[1765675275959,0.22106834,90470.0,90469.0,0.03486]
[1765675277422,0.01105326,90471.0,90469.0,0.03486]
[1765675277574,0.01105326,90471.0,90469.0,0.02688]
[1765675277760,0.01105326,90471.0,90470.0,0.02305]
[1765675278646,0.23212045,90471.0,90470.0,0.02305]
[1765675279086,0.23212045,90471.0,90469.0,0.01181]
[1765675279544,0.22107508,90467.0,90466.0,0.47754]
[1765675279855,0.22107997,90465.0,90464.0,0.3228]
[1765675280132,0.22107997,90465.0,90464.0,0.34024]
[1765675280524,0.23212883,90467.0,90465.0,0.3229]
[1765675281554,0.22107997,90465.0,90464.0,0.01744]
[1765675281753,0.22107997,90465.0,90464.0,0.34094]
[1765675282598,0.22107997,90465.0,90464.0,0.34164]
[1765675282891,0.22107997,90465.0,90464.0,0.34264]
[1765675283536,0.22107997,90465.0,90464.0,0.01944]
[1765675283740,0.22107997,90465.0,90464.0,0.89844]
[1765675284502,0.22107997,90465.0,90464.0,0.002]
[1765675284710,0.22107997,90465.0,90464.0,0.34274]
[1765675285741,0.22107997,90465.0,90464.0,0.34774]
[1765675286617,0.22107997,90465.0,90464.0,0.86234]
[1765675287023,0.22107997,90465.0,90464.0,0.30654]
[1765675287231,0.22107997,90465.0,90464.0,0.38610224]
[1765675287644,0.22107997,90465.0,90464.0,0.27990224]
[1765675287845,0.22107997,90465.0,90464.0,0.26950224]
[1765675288266,0.22107997,90465.0,90464.0,0.22386224]
[1765675288556,0.22107997,90465.0,90464.0,0.16174]
[1765675288763,0.22107997,90465.0,90464.0,0.16244]
[1765675289464,0.22107997,90465.0,90464.0,0.16144]
[1765675289677,0.22107997,90465.0,90464.0,0.16114]
[1765675290256,0.22107997,90465.0,90464.0,0.16014]
[1765675290680,0.22107997,90465.0,90464.0,1.05753]
[1765675290888,0.22107997,90465.0,90464.0,1.24791268]
[1765675291037,0.23212883,90467.0,90464.0,1.24791268]
[1765675291398,0.23212883,90467.0,90466.0,1.1378]
[1765675291555,0.23212883,90467.0,90466.0,0.1378]
[1765675291759,0.23212883,90467.0,90466.0,1.1378]
[1765675292000,0.23212883,90467.0,90466.0,1.1626]
[1765675294618,0.23212883,90467.0,90466.0,0.1626]
[1765675294848,0.23212883,90467.0,90466.0,1.1626]
[1765675298216,0.23212883,90467.0,90466.0,1.1378]
[1765675301574,0.23212883,90467.0,90466.0,1.1626]
[1765675301755,0.23212883,90467.0,90466.0,0.1626]
[1765675301963,0.23212883,90467.0,90466.0,1.1626]
[1765675304193,0.23212883,90467.0,90466.0,1.0518]
[1765675304510,0.23212883,90467.0,90466.0,1.1626]
[1765675304713,0.23212883,90467.0,90466.0,1.1378]
[1765675305700,0.23212883,90467.0,90466.0,1.027]
[1765675310062,0.23212883,90467.0,90466.0,0.027]
[1765675310224,0.23212883,90467.0,90466.0,1.027]
[1765675315146,0.23212883,90467.0,90466.0,0.027]
[1765675315292,0.23212883,90467.0,90466.0,1.027]
[1765675318094,0.01105375,90467.0,90466.0,1.05185]
[1765675318305,0.23212883,90467.0,90466.0,1.05185]
[1765675318911,0.23212883,90467.0,90466.0,1.027]
[1765675319130,0.01105375,90467.0,90466.0,1.027]
[1765675319248,0.01105375,90467.0,90466.0,1.05185]
[1765675320542,0.01105375,90467.0,90466.0,1.027]
[1765675322897,0.01105326,90471.0,90467.0,1.0]
[1765675323097,0.01105338,90470.0,90467.0,0.10443268]
[1765675323357,0.01105338,90470.0,90468.0,0.03685]
[1765675326238,0.01105326,90471.0,90468.0,0.2689761]
[1765675327984,0.2210619,90473.0,90468.0,0.2689761]
[1765675327985,0.2210619,90473.0,90469.0,0.01105351]
[1765675328306,0.22106531,90471.0,90468.0,0.012]
[1765675328859,0.2210702,90469.0,90468.0,0.012]
[1765675336745,0.22107508,90467.0,90466.0,1.01171]
[1765675339500,0.22107508,90467.0,90466.0,1.05255]
[1765675339726,0.22107508,90467.0,90466.0,1.0277]
[1765675339926,0.22107508,90467.0,90466.0,1.05255]
[1765675340063,0.01105351,90469.0,90467.0,1.0]
[1765675340430,0.23212569,90469.0,90467.0,1.0]
[1765675342958,0.23212569,90469.0,90467.0,0.02485]
[1765675344181,0.22107508,90467.0,90466.0,0.01171]
[1765675344392,0.22107508,90467.0,90466.0,1.01171]
[1765675344781,0.22107508,90467.0,90466.0,1.03502]
[1765675349820,0.22107508,90467.0,90466.0,1.05093]
[1765675354367,0.22107508,90467.0,90466.0,0.05093]
[1765675354555,0.22107508,90467.0,90466.0,1.05093]
[1765675354706,0.23212569,90469.0,90467.0,1.0]
[1765675354943,0.23212569,90469.0,90468.0,0.01591]
[1765675362367,0.23212569,90469.0,90468.0,0.12671]
[1765675362986,0.23212569,90469.0,90468.0,0.03845]
[1765675363570,0.23212569,90469.0,90468.0,0.01591]
[1765675367558,0.23212569,90469.0,90468.0,0.03845]
[1765675368210,0.23212569,90469.0,90468.0,0.01591]
[1765675368841,0.22107508,90467.0,90466.0,1.01171]
[1765675369552,0.22107508,90467.0,90466.0,1.03425]
[1765675369944,0.22107508,90467.0,90466.0,0.03425]
[1765675370158,0.22107508,90467.0,90466.0,1.03425]
[1765675370338,0.22107508,90467.0,90466.0,1.05169]
[1765675371972,0.22107508,90467.0,90466.0,1.0676]
[1765675375126,0.22107466,90468.0,90467.0,1.0]
[1765675375635,0.22107466,90468.0,90467.0,1.03925]
[1765675381662,0.01105351,90469.0,90468.0,1.1108]
[1765675381846,0.01105351,90469.0,90468.0,1.15005]
[1765675383868,0.01105326,90471.0,90470.0,0.1108]
[1765675384070,0.23211808,90472.0,90470.0,0.13822]
[1765675384291,0.23211808,90472.0,90471.0,0.15005]
[1765675384613,0.23212371,90469.0,90468.0,1.0357]
[1765675384783,0.23212371,90469.0,90466.0,0.09702268]
[1765675384784,0.22107508,90467.0,90466.0,0.01744]
[1765675385008,0.22107508,90467.0,90466.0,1.01744]
[1765675385576,0.22108975,90461.0,90460.0,0.07958268]
[1765675385905,0.22108975,90461.0,90460.0,0.01744]
[1765675386722,0.22108975,90461.0,90460.0,0.01844]
[1765675388808,0.22108975,90461.0,90460.0,0.01944]
[1765675389151,0.22920975,90461.0,90460.0,0.01944]
[1765675389354,0.22920975,90461.0,90460.0,0.07909062]
[1765675389960,0.22920975,90461.0,90460.0,0.01944]
[1765675390361,0.22920975,90461.0,90460.0,0.07908328]
[1765675393469,0.22920975,90461.0,90460.0,0.01944]
[1765675407294,0.22920975,90461.0,90460.0,0.07908328]
[1765675410857,0.26862975,90461.0,90460.0,0.07908328]
[1765675411054,0.24561975,90461.0,90460.0,0.07908328]
[1765675411512,0.24561975,90461.0,90460.0,0.01944]
[1765675412652,0.22920975,90461.0,90460.0,0.01944]
[1765675414521,0.24561975,90461.0,90460.0,0.01944]
[1765675415180,0.22920975,90461.0,90460.0,0.01944]
[1765675415948,0.22108975,90461.0,90460.0,0.01944]
[1765675428576,0.22108975,90461.0,90460.0,0.05888]
[1765675429410,0.22108975,90461.0,90460.0,0.03572]
[1765675430354,0.01105375,90467.0,90460.0,0.29102679]
[1765675430480,0.01105412,90464.0,90461.0,0.02316]
[1765675430893,0.01105412,90464.0,90463.0,0.01628]
[1765675431541,0.01105412,90464.0,90463.0,0.03944]
[1765675431700,0.26533601,90465.0,90463.0,0.03944]
[1765675431905,0.26533601,90465.0,90464.0,0.02316]
[1765675435753,0.26533601,90465.0,90456.0,0.07958268]
[1765675435754,0.22109708,90458.0,90456.0,0.07958268]
[1765675435958,0.22112641,90446.0,90445.0,0.01132]
[1765675436163,0.23310641,90446.0,90445.0,0.02876]
[1765675436368,0.23293904,90446.0,90445.0,0.02876]
[1765675436571,0.22095904,90446.0,90445.0,0.02876]
[1765675437588,0.22095904,90446.0,90445.0,0.02976]
[1765675437987,0.22095904,90446.0,90445.0,0.02876]
[1765675438217,0.22095904,90446.0,90445.0,0.02976]
[1765675438423,0.22095904,90446.0,90445.0,0.03076]
[1765675440039,0.22095904,90446.0,90445.0,0.01944]
[1765675440568,0.22095904,90446.0,90445.0,0.01744]
[1765675441401,0.22095904,90446.0,90445.0,0.07706583]
[1765675441612,0.03320639,90450.0,90449.0,0.22111908]
[1765675441819,0.01105509,90456.0,90452.0,0.01105558]
[1765675442094,0.01105509,90456.0,90453.0,1.0]
[1765675442377,0.01105497,90457.0,90456.0,1.0]
[1765675442675,0.01105473,90459.0,90457.0,1.0]
[1765675442874,0.01105473,90459.0,90458.0,1.0]
[1765675443076,0.01105473,90459.0,90458.0,1.03994]
[1765675443637,0.0110546,90460.0,90458.0,0.03994]
[1765675443838,0.0110546,90460.0,90459.0,0.02366]
[1765675444337,0.26534585,90462.0,90459.0,0.03994]
[1765675444477,0.01105436,90462.0,90461.0,0.0276]
[1765675444911,0.01105436,90462.0,90461.0,0.05126]
[1765675445755,0.01205436,90462.0,90461.0,0.05126]
[1765675446775,0.01305436,90462.0,90461.0,0.05126]
[1765675446957,0.01105436,90462.0,90461.0,0.05126]
[1765675447320,0.01305436,90462.0,90461.0,0.05126]
[1765675449976,0.01205436,90462.0,90461.0,0.05126]
[1765675450180,0.01105436,90462.0,90461.0,0.05126]
[1765675450381,0.01305436,90462.0,90461.0,0.05126]
[1765675451401,0.01305436,90462.0,90461.0,0.0276]
[1765675451720,0.01305436,90462.0,90461.0,0.01132]
[1765675451925,0.22108975,90461.0,90459.0,0.05962209]
[1765675453233,0.22208975,90461.0,90459.0,0.05962209]
[1765675456779,0.22208975,90461.0,90459.0,0.08328209]
[1765675462690,0.22208975,90461.0,90459.0,0.02366]
[1765675465450,0.22208975,90461.0,90459.0,0.08328209]
[1765675468494,0.22208975,90461.0,90460.0,0.05962209]
[1765675469460,0.22208975,90461.0,90459.0,0.02366]
[1765675469660,0.22108975,90461.0,90459.0,0.02366]
[1765675469869,0.22208975,90461.0,90459.0,0.02366]
[1765675470256,0.22208975,90461.0,90458.0,1.0]
[1765675470257,0.22109493,90459.0,90458.0,1.0]
[1765675470474,0.22109493,90459.0,90458.0,1.0227]
[1765675471265,0.22109493,90459.0,90458.0,1.03848]
[1765675473362,0.22109493,90459.0,90458.0,0.48428]
[1765675473589,0.22209493,90459.0,90458.0,0.48428]
[1765675473786,0.22209493,90459.0,90458.0,0.46158]
[1765675474508,0.22209493,90459.0,90458.0,0.363]
[1765675475402,0.22209493,90459.0,90458.0,0.3087]
[1765675475782,0.22209493,90459.0,90458.0,0.2673]
[1765675478344,0.22209493,90459.0,90458.0,0.2531]
[1765675478701,0.22209493,90459.0,90458.0,0.1755]
[1765675482470,0.22209493,90459.0,90458.0,0.1432]
[1765675485023,0.22209493,90459.0,90457.0,0.01132]
[1765675485675,0.22109922,90458.0,90456.0,0.01744]
[1765675486345,0.23314966,90459.0,90457.0,0.03848]
[1765675486541,0.23314966,90459.0,90458.0,0.01578]
[1765675486863,0.23314966,90459.0,90458.0,0.03848]
[1765675487506,0.23214966,90459.0,90458.0,0.03848]
[1765675488343,0.23314966,90459.0,90458.0,0.03848]
[1765675501901,0.01205473,90459.0,90458.0,0.03848]
[1765675503653,0.001,90459.0,90458.0,0.03848]
[1765675516990,0.001,90459.0,90458.0,0.04953363]
[1765675517192,0.02210726,90468.0,90465.0,0.01105399]
[1765675517400,0.02210726,90468.0,90466.0,0.01744]
[1765675517614,0.01105363,90468.0,90467.0,0.02647]
[1765675517790,0.01105289,90474.0,90470.0,0.01105338]
[1765675517996,0.01105289,90474.0,90473.0,0.02647]
[1765675518468,0.01105289,90474.0,90473.0,0.05002]
[1765675519459,0.01305289,90474.0,90473.0,0.05002]
[1765675519657,0.004,90474.0,90473.0,0.05002]
[1765675521902,0.004,90474.0,90473.0,0.02647]
[1765675522115,0.004,90474.0,90473.0,0.24753042]
[1765675522320,0.004,90474.0,90473.0,0.27108042]
[1765675523479,0.002,90474.0,90473.0,0.27108042]
[1765675523703,0.00023796,90478.0,90475.0,0.2321073]
[1765675523985,0.00023796,90478.0,90476.0,0.01744]
[1765675524191,0.00023796,90478.0,90476.0,0.0289]
[1765675525191,0.00023796,90478.0,90477.0,0.22105065]
[1765675525408,0.00223796,90478.0,90477.0,0.23752065]
[1765675525657,0.00223796,90478.0,90477.0,0.26089065]
[1765675525658,0.00423796,90478.0,90477.0,0.26089065]
[1765675525894,0.00223796,90478.0,90477.0,0.26089065]
[1765675526134,0.00423796,90478.0,90477.0,0.26089065]
[1765675526385,0.00223796,90478.0,90477.0,0.26089065]
[1765675526868,0.00123796,90478.0,90477.0,0.30060326]
[1765675527104,0.00323796,90478.0,90477.0,0.30060326]
[1765675527593,0.00123796,90478.0,90477.0,0.30060326]
[1765675527842,0.00223796,90478.0,90477.0,0.30060326]
[1765675528042,0.00223796,90478.0,90477.0,0.26089065]
[1765675541694,0.00223796,90478.0,90477.0,1.37169065]
[1765675541893,0.00223796,90478.0,90477.0,1.39379375]
[1765675542088,0.00223796,90478.0,90477.0,1.45343551]
[1765675542640,0.00223796,90478.0,90477.0,1.39379375]
[1765675545626,0.01105302,90473.0,90470.0,1.0]
[1765675545776,0.23211567,90473.0,90471.0,0.01744]
[1765675546186,0.23211567,90473.0,90471.0,0.04081]
[1765675546583,0.01105302,90473.0,90471.0,0.04081]
[1765675546766,0.23211265,90474.0,90471.0,0.05186326]
[1765675549453,0.23211265,90474.0,90473.0,0.0163]
[1765675549614,0.01105289,90474.0,90473.0,0.0163]
[1765675549816,0.01105289,90474.0,90473.0,0.03967]
[1765675555451,0.23210584,90476.0,90473.0,0.03967]
[1765675555662,0.23210584,90476.0,90475.0,0.02868]
[1765675556073,0.23210584,90476.0,90475.0,0.05206]
[1765675556764,0.23310584,90476.0,90475.0,0.05206]
[1765675557011,0.23310584,90476.0,90471.0,0.01744]
[1765675557012,0.23211232,90474.0,90471.0,0.01744]
[1765675557231,0.22106287,90472.0,90471.0,0.59944]
[1765675558395,0.22106287,90472.0,90471.0,0.582]
[1765675558619,0.22106287,90472.0,90471.0,0.64604]
[1765675559765,0.22106287,90472.0,90471.0,0.62404]
[1765675560657,0.01105302,90473.0,90471.0,0.04082]
[1765675560882,0.23211584,90473.0,90471.0,0.04082]
[1765675561323,0.23211584,90473.0,90472.0,0.02338]
[1765675561558,0.23211584,90473.0,90472.0,0.0384]
[1765675564496,0.23211584,90473.0,90472.0,0.05078]
[1765675566220,0.01105302,90473.0,90472.0,0.05078]
[1765675566716,0.22106287,90472.0,90471.0,0.01744]
[1765675566926,0.22106287,90472.0,90471.0,0.58974]
[1765675567128,0.22106287,90472.0,90471.0,0.57964]
[1765675568366,0.22106287,90472.0,90471.0,0.56014]
[1765675571284,0.22106287,90472.0,90471.0,0.57643]
[1765675571629,0.01105289,90474.0,90471.0,0.05758]
[1765675571781,0.22106042,90473.0,90472.0,0.04014]
[1765675572164,0.01105289,90474.0,90472.0,0.05205]
[1765675572365,0.01105289,90474.0,90473.0,0.04014]
[1765675573480,0.01105265,90476.0,90473.0,1.04014]
[1765675573692,0.01105265,90476.0,90475.0,0.0282]
[1765675574069,0.01105265,90476.0,90475.0,0.05205]
[1765675574909,0.01205265,90476.0,90475.0,0.05205]
[1765675584803,0.001,90476.0,90475.0,0.05205]
[1765675605008,0.22205309,90476.0,90475.0,0.05205]
[1765675605787,0.001,90476.0,90475.0,0.05205]
[1765675613452,0.001,90476.0,90475.0,0.0282]
[1765675613785,0.001,90476.0,90475.0,0.05214]
[1765675623871,0.001,90476.0,90475.0,0.02696]
[1765675624012,0.001,90476.0,90475.0,1.39143664]
[1765675624214,0.0002,90490.0,90489.0,0.27103972]
[1765675624413,0.0002,90490.0,90489.0,1.04921]
[1765675624414,0.00031557,90490.0,90489.0,1.04921]
[1765675624614,0.00031557,90490.0,90489.0,1.06426]
[1765675626200,0.00031557,90490.0,90489.0,1.06626]
[1765675626473,0.00031557,90490.0,90489.0,1.06826]
[1765675627460,0.00031557,90490.0,90489.0,1.28928133]
[1765675627642,0.00031557,90490.0,90489.0,1.06826]
[1765675629912,0.00067245,90490.0,90489.0,1.06826]
[1765675638494,0.00067245,90490.0,90489.0,1.05923]
[1765675638713,0.00067245,90490.0,90489.0,1.17003]
[1765675642367,0.00067245,90490.0,90489.0,0.17003]
[1765675642618,0.00067245,90490.0,90489.0,1.17003]
[1765675643558,0.00067245,90490.0,90489.0,1.05923]
[1765675645378,0.00067245,90490.0,90489.0,0.05923]
[1765675645607,0.00067245,90490.0,90489.0,1.17003]
[1765675646856,0.00067245,90490.0,90489.0,1.03649]
[1765675647070,0.00067245,90490.0,90489.0,1.13224]
[1765675647286,0.00067245,90490.0,90489.0,1.1148]
[1765675647625,0.00067245,90490.0,90489.0,1.0214]
[1765675647796,0.00067245,90490.0,90489.0,1.04537]
[1765675651437,0.00067245,90490.0,90489.0,1.06103]
[1765675652184,0.00067245,90490.0,90489.0,1.14039809]
[1765675653279,0.00067245,90490.0,90489.0,1.06103]
[1765675662888,0.00067245,90490.0,90489.0,0.06103]
[1765675663094,0.00067245,90490.0,90489.0,1.06103]
[1765675667118,0.00067245,90490.0,90489.0,0.06103]
[1765675667251,0.00067245,90490.0,90489.0,0.4397]
[1765675667984,0.00067245,90490.0,90489.0,0.4377]
[1765675668181,0.00067245,90490.0,90489.0,1.0194]
[1765675668363,0.00067245,90490.0,90489.0,1.0184]
[1765675668581,0.00067245,90490.0,90489.0,1.0204]
[1765675670390,0.00228532,90490.0,90489.0,0.0204]
[1765675670616,0.01826532,90490.0,90489.0,0.0204]
[1765675670813,0.04111532,90490.0,90489.0,0.0204]
[1765675671145,0.01826532,90490.0,90489.0,0.0204]
[1765675671349,0.00228532,90490.0,90489.0,0.0204]
[1765675674906,0.00228532,90490.0,90489.0,0.24142133]
[1765675675403,0.00228532,90490.0,90489.0,0.0204]
[1765675679553,0.00228532,90490.0,90489.0,0.24142133]
[1765675680733,0.00228532,90490.0,90489.0,0.0204]
[1765675684288,0.00228532,90490.0,90489.0,0.05926]
[1765675684933,0.00228532,90490.0,90489.0,0.03616]
[1765675686319,0.00228532,90490.0,90489.0,0.05926]
[1765675686728,0.00228532,90490.0,90489.0,0.03616]
[1765675688807,0.00228532,90490.0,90489.0,0.06934736]
[1765675690430,0.00228532,90490.0,90489.0,0.29036869]
[1765675690588,0.00228532,90490.0,90489.0,0.31346869]
[1765675691206,0.00228532,90490.0,90489.0,0.06934736]
[1765675691786,0.00228532,90490.0,90489.0,0.09244736]
[1765675692175,0.00228532,90490.0,90489.0,0.06934736]
[1765675693736,0.00228532,90490.0,90489.0,0.09244736]
[1765675696040,0.00228532,90490.0,90489.0,0.06934736]
[1765675698524,0.00228532,90490.0,90489.0,0.09244736]
[1765675705803,0.00067245,90490.0,90489.0,0.09244736]
[1765675717547,0.00067245,90490.0,90489.0,1.25427545]
[1765675717796,0.00067245,90490.0,90489.0,1.25326575]
[1765675718359,0.00067245,90490.0,90489.0,0.38794736]
[1765675718561,0.00067245,90490.0,90489.0,0.09994593]
[1765675718738,0.00228532,90490.0,90489.0,0.0204]
[1765675720560,0.00228532,90490.0,90489.0,0.0174]
[1765675720937,0.00228532,90490.0,90489.0,0.0184]
[1765675721314,0.00228532,90490.0,90489.0,0.0194]
[1765675728887,0.04272532,90490.0,90489.0,0.0194]
[1765675729088,0.00228532,90490.0,90489.0,0.0194]
[1765675729291,0.03547547,90490.0,90489.0,0.11843976]
[1765675730929,0.03547547,90490.0,90489.0,0.05883]
[1765675731746,0.25649436,90490.0,90489.0,0.05883]
[1765675731947,0.25649436,90490.0,90489.0,0.0194]
[1765675732125,0.27273436,90490.0,90489.0,0.0194]
[1765675732331,0.29693436,90490.0,90489.0,0.0194]
[1765675732812,0.29693436,90490.0,90489.0,0.07900976]
[1765675733294,0.29693436,90490.0,90489.0,0.0194]
[1765675735330,0.27273436,90490.0,90489.0,0.0194]
[1765675739179,0.27273436,90490.0,90489.0,0.07900976]
[1765675739975,0.27273436,90490.0,90489.0,0.0194]
[1765675740325,0.27273436,90490.0,90489.0,0.07900976]
[1765675741783,0.29596436,90490.0,90489.0,0.07900976]
[1765675742407,0.27273436,90490.0,90489.0,0.07900976]
[1765675743778,0.25649436,90490.0,90489.0,0.07900976]
[1765675743983,0.03547547,90490.0,90489.0,0.06035]
[1765675744782,0.03547547,90490.0,90489.0,0.11997599]
[1765675744988,0.03547547,90490.0,90489.0,0.09501599]
[1765675745352,0.03547547,90490.0,90489.0,0.03539]
[1765675746283,0.03547547,90490.0,90489.0,0.06035]
[1765675749499,0.00228532,90490.0,90489.0,0.06035]
[1765675752777,0.22330421,90490.0,90489.0,0.06035]